bitfinex/quotes_BTCUSD_20250615
["timestamp","ask_amount","ask_price","bid_price","bid_amount"]
[1749994208496,5.57013691,105640.0,105630.0,0.0164]
[1749994208729,6.19428466,105640.0,105630.0,0.0164]
[1749994209086,6.35056466,105640.0,105630.0,0.0174]
[1749994209293,6.35056466,105640.0,105630.0,0.0194]
[1749994209500,5.81310056,105640.0,105630.0,0.002]
[1749994209749,0.19880696,105630.0,105620.0,0.25056053]
[1749994209909,0.73627106,105630.0,105620.0,0.34680229]
[1749994210493,0.74573752,105630.0,105620.0,0.34680229]
[1749994210892,0.74582693,105630.0,105620.0,0.34680229]
[1749994211594,0.74582693,105630.0,105620.0,0.34780229]
[1749994211933,0.74582693,105630.0,105620.0,0.34980229]
[1749994212992,5.57024593,105630.0,105620.0,0.34033484]
[1749994213198,5.56077947,105630.0,105620.0,0.24409326]
[1749994213411,5.56077947,105630.0,105620.0,0.24529578]
[1749994213610,5.56077947,105630.0,105620.0,0.24529584]
[1749994214247,5.56077947,105630.0,105620.0,0.23582841]
[1749994214456,5.56077947,105630.0,105620.0,0.21822554]
[1749994214662,5.56077947,105630.0,105620.0,0.23582841]
[1749994214865,5.56077947,105630.0,105620.0,0.21822554]
[1749994215315,5.55131265,105630.0,105620.0,0.03700343]
[1749994215519,5.55131265,105630.0,105620.0,0.0194]
[1749994215734,5.70759265,105630.0,105620.0,0.0194]
[1749994215943,5.70759265,105630.0,105620.0,0.03700355]
[1749994216142,5.70759265,105630.0,105620.0,0.03700356]
[1749994216556,5.70759265,105630.0,105620.0,0.03700355]
[1749994216767,5.70759265,105630.0,105620.0,0.0194]
[1749994216978,6.04759265,105630.0,105620.0,0.03700353]
[1749994217237,6.04759265,105630.0,105620.0,0.0370041]
[1749994217448,5.93892089,105630.0,105620.0,0.03700421]
[1749994217693,6.12860089,105630.0,105620.0,0.003]
[1749994218751,0.37787358,105610.0,105600.0,0.25035386]
[1749994218989,1.10471368,105610.0,105600.0,0.355401]
[1749994219201,1.10471368,105610.0,105600.0,0.37301178]
[1749994219431,1.10471368,105610.0,105600.0,0.373012]
[1749994219647,1.10471368,105610.0,105600.0,0.36420663]
[1749994219858,1.10471368,105610.0,105600.0,0.37301218]
[1749994220058,1.10471368,105610.0,105600.0,0.36420664]
[1749994220265,5.91966469,105610.0,105600.0,0.36420715]
[1749994220495,5.91966469,105610.0,105600.0,0.34280165]
[1749994220694,5.91019643,105610.0,105600.0,0.36041374]
[1749994220906,5.91019643,105610.0,105600.0,0.03761171]
[1749994220907,5.3632638,105610.0,105600.0,0.03761171]
[1749994221113,5.9007279,105610.0,105600.0,0.02880602]
[1749994221455,5.9007279,105610.0,105600.0,0.23947597]
[1749994221664,5.9007279,105610.0,105600.0,0.24828214]
[1749994221665,6.0570079,105610.0,105600.0,0.24828214]
[1749994221872,6.0570079,105610.0,105600.0,0.24435195]
[1749994222117,6.0570079,105610.0,105600.0,0.23252269]
[1749994222324,6.0570079,105610.0,105600.0,0.24335219]
[1749994222540,6.0570079,105610.0,105600.0,0.22569314]
[1749994222753,6.07480466,105610.0,105600.0,0.25282179]
[1749994223002,6.06533586,105610.0,105600.0,0.03665905]
[1749994223206,6.06533586,105610.0,105600.0,0.02783001]
[1749994223423,6.16148508,105610.0,105600.0,0.02783008]
[1749994223637,6.06533586,105610.0,105600.0,0.04549028]
[1749994224061,6.06533586,105610.0,105600.0,0.04549015]
[1749994224501,6.06533586,105610.0,105600.0,0.02783005]
[1749994224731,6.06533586,105610.0,105600.0,0.03666011]
[1749994224946,6.07532466,105610.0,105600.0,0.02783006]
[1749994225156,6.07532466,105610.0,105600.0,0.02949018]
[1749994225361,6.06533586,105610.0,105600.0,0.04722981]
[1749994225768,5.90905586,105610.0,105600.0,0.2549234]
[1749994225979,6.06533586,105610.0,105600.0,0.23726328]
[1749994226191,6.06533586,105610.0,105600.0,0.05605981]
[1749994226396,6.06533586,105610.0,105600.0,0.02956969]
[1749994226625,6.16148508,105610.0,105600.0,0.04659015]
[1749994226830,6.16148508,105610.0,105600.0,0.0377617]
[1749994227051,6.16148508,105610.0,105600.0,0.02893094]
[1749994227266,6.16148508,105610.0,105600.0,0.01183134]
[1749994227472,6.17838508,105610.0,105600.0,0.01083151]
[1749994227681,6.29112684,105610.0,105600.0,0.01083151]
[1749994227905,6.19497762,105610.0,105600.0,0.02649728]
[1749994228119,6.19497762,105610.0,105600.0,0.00883251]
[1749994228339,5.36328244,105600.0,105590.0,0.0171]
[1749994228558,6.05698654,105600.0,105590.0,0.04359895]
[1749994228772,6.05698654,105600.0,105590.0,0.034766]
[1749994228983,6.05698654,105600.0,105590.0,0.03476602]
[1749994229423,6.05698654,105600.0,105590.0,0.04359908]
[1749994229655,5.90074654,105600.0,105590.0,0.03476606]
[1749994229865,6.05702654,105600.0,105590.0,0.04559909]
[1749994230066,6.05702654,105600.0,105590.0,0.0191]
[1749994230271,6.05702654,105600.0,105590.0,0.03676604]
[1749994230514,6.05702654,105600.0,105590.0,0.04559906]
[1749994230719,6.05702654,105600.0,105590.0,0.02793302]
[1749994230935,6.05702654,105600.0,105590.0,0.02793301]
[1749994231153,6.05702654,105600.0,105590.0,0.02893301]
[1749994231357,6.05702654,105600.0,105590.0,0.03776666]
[1749994231558,6.08595717,105600.0,105590.0,0.04660011]
[1749994232007,6.08595717,105600.0,105590.0,0.0201]
[1749994233232,5.54849307,105600.0,105590.0,0.0201]
[1749994233437,6.08595717,105600.0,105590.0,0.0201]
[1749994234063,6.08595717,105600.0,105590.0,0.003]
[1749994234264,6.10375717,105600.0,105590.0,0.003]
[1749994234489,6.64122127,105600.0,105590.0,0.003]
[1749994234912,6.64122127,105600.0,105590.0,0.002]
[1749994235115,0.20835206,105590.0,105580.0,0.27063431]
[1749994235317,5.3618831,105590.0,105580.0,0.28816959]
[1749994235520,5.3618831,105590.0,105580.0,0.27940198]
[1749994235901,5.57970548,105590.0,105580.0,0.27063431]
[1749994236265,5.59864684,105590.0,105580.0,0.21554588]
[1749994236483,6.01585569,105590.0,105580.0,0.21639163]
[1749994236729,6.06647606,105590.0,105580.0,0.0290136]
[1749994237013,6.05700556,105590.0,105580.0,0.01954211]
[1749994237256,6.04753497,105590.0,105580.0,0.01954211]
[1749994237772,6.04753497,105590.0,105580.0,0.02054211]
[1749994238502,5.51007087,105590.0,105580.0,0.02054211]
[1749994238743,6.04753497,105590.0,105580.0,0.02054211]
[1749994239194,6.04753497,105590.0,105580.0,0.01954211]
[1749994239441,6.04753497,105590.0,105580.0,0.01754211]
[1749994240113,6.04753497,105590.0,105580.0,0.04405345]
[1749994240343,6.09576216,105590.0,105580.0,0.02637922]
[1749994240606,6.04753497,105590.0,105580.0,0.02637922]
[1749994241068,6.04753497,105590.0,105580.0,0.04405345]
[1749994241480,6.06493497,105590.0,105580.0,0.00897922]
[1749994241686,6.17858419,105590.0,105580.0,0.00898007]
[1749994241911,6.02234419,105590.0,105580.0,0.02665688]
[1749994242091,6.02234419,105590.0,105580.0,0.01781957]
[1749994242331,6.21962419,105590.0,105580.0,0.00014211]
[1749994242540,5.92619497,105590.0,105580.0,0.02665844]
[1749994242746,5.90869497,105590.0,105580.0,0.02665826]
[1749994242959,6.10593497,105590.0,105580.0,0.02665683]
[1749994243213,6.10593497,105590.0,105580.0,0.01781854]
[1749994243425,6.06493497,105590.0,105580.0,0.01781787]
[1749994243600,6.06493497,105590.0,105580.0,0.0266557]
[1749994243837,6.06493497,105590.0,105580.0,0.02665543]
[1749994244255,6.06493497,105590.0,105580.0,0.00014211]
[1749994244483,6.06493497,105590.0,105580.0,0.01781362]
[1749994244936,6.06493497,105590.0,105580.0,0.01781266]
[1749994245153,6.06493497,105590.0,105580.0,0.00014211]
[1749994245367,6.04757497,105590.0,105580.0,0.01764211]
[1749994245560,5.89129497,105590.0,105580.0,0.03531249]
[1749994245813,6.04757497,105590.0,105580.0,0.03531101]
[1749994246020,6.04757497,105590.0,105580.0,0.01764211]
[1749994246204,6.04757497,105590.0,105580.0,0.03531109]
[1749994246402,6.04757497,105590.0,105580.0,0.03531108]
[1749994246608,6.04757497,105590.0,105580.0,0.03531146]
[1749994246825,5.19282942,105590.0,105580.0,0.25218531]
[1749994247034,5.39171179,105590.0,105580.0,0.26038083]
[1749994247234,5.73976402,105590.0,105580.0,0.26165644]
[1749994247440,5.73976402,105590.0,105580.0,0.2793217]
[1749994247651,5.73029352,105590.0,105580.0,0.2711273]
[1749994247857,5.73976402,105590.0,105580.0,0.25218549]
[1749994248220,5.73029352,105590.0,105580.0,0.27932099]
[1749994248408,5.164419,105590.0,105580.0,0.37556269]
[1749994248617,5.164419,105590.0,105580.0,0.37555796]
[1749994248824,5.164419,105590.0,105580.0,0.37555729]
[1749994249094,5.17388896,105590.0,105580.0,0.37555659]
[1749994249421,5.72082311,105590.0,105580.0,0.35789811]
[1749994249628,5.72082311,105590.0,105580.0,0.3755569]
[1749994249837,5.72082311,105590.0,105580.0,0.37755705]
[1749994250262,5.72082311,105590.0,105580.0,0.37755669]
[1749994250683,5.72082311,105590.0,105580.0,0.37755659]
[1749994250881,5.72082311,105590.0,105580.0,0.3785566]
[1749994251090,5.71135306,105590.0,105580.0,0.3785566]
[1749994251307,5.71135306,105590.0,105580.0,0.37855635]
[1749994251515,5.71135306,105590.0,105580.0,0.37855657]
[1749994251720,5.71135306,105590.0,105580.0,0.37855649]
[1749994251926,5.71135306,105590.0,105580.0,0.37855656]
[1749994252134,0.34946996,105590.0,105580.0,0.37855656]
[1749994252346,0.34,105590.0,105580.0,0.51713811]
[1749994252567,0.34946987,105590.0,105580.0,0.51713811]
[1749994252778,0.34,105590.0,105580.0,0.53479551]
[1749994252995,5.92917571,105590.0,105580.0,0.34291439]
[1749994253213,5.92917571,105590.0,105580.0,0.33472752]
[1749994253423,5.91970593,105590.0,105580.0,0.32397511]
[1749994253630,5.94292344,105590.0,105580.0,0.02064211]
[1749994253840,5.94292344,105590.0,105580.0,0.02077187]
[1749994254049,5.92803588,105590.0,105580.0,0.00314211]
[1749994254263,5.39057178,105590.0,105580.0,0.02077248]
[1749994254483,5.39057178,105590.0,105580.0,0.02077328]
[1749994254484,6.10105588,105590.0,105580.0,0.02077328]
[1749994254694,6.10105588,105590.0,105580.0,0.01777402]
[1749994254918,6.08435588,105590.0,105580.0,0.01777402]
[1749994255145,6.08435588,105590.0,105580.0,0.00014211]
[1749994255574,6.08435588,105590.0,105580.0,0.0177741]
[1749994255821,6.1972051,105590.0,105580.0,0.00014211]
[1749994256247,6.10105588,105590.0,105580.0,0.01777519]
[1749994256676,6.10105588,105590.0,105580.0,0.00014211]
[1749994257073,6.10105588,105590.0,105580.0,0.01777646]
[1749994257331,6.10105588,105590.0,105580.0,0.00014211]
[1749994257750,6.10105588,105590.0,105580.0,0.01777642]
[1749994257959,6.1972051,105590.0,105580.0,0.01777644]
[1749994258176,6.1972051,105590.0,105580.0,0.01777642]
[1749994258611,6.1972051,105590.0,105580.0,0.00014211]
[1749994259260,6.1972051,105590.0,105580.0,0.01777642]
[1749994259517,6.1972051,105590.0,105580.0,0.01777637]
[1749994259739,6.1972051,105590.0,105580.0,0.02659361]
[1749994259951,6.1972051,105590.0,105580.0,0.02659433]
[1749994260152,6.1972051,105590.0,105580.0,0.02659447]
[1749994260384,6.1972051,105590.0,105580.0,0.00014211]
[1749994260607,6.1972051,105590.0,105580.0,0.01777767]
[1749994260825,6.1972051,105590.0,105580.0,0.00895989]
[1749994261050,6.1972051,105590.0,105580.0,0.02659559]
[1749994261269,6.1972051,105590.0,105580.0,0.02659558]
[1749994261491,6.1972051,105590.0,105580.0,0.00014211]
[1749994262394,6.08435588,105590.0,105580.0,0.01781065]
[1749994262855,5.54689178,105590.0,105580.0,0.01781065]
[1749994263070,6.10155588,105590.0,105580.0,0.00014211]
[1749994263291,6.10155588,105590.0,105580.0,0.01781118]
[1749994263520,6.1977051,105590.0,105580.0,0.01781154]
[1749994263736,6.1977051,105590.0,105580.0,0.01781178]
[1749994263947,6.1977051,105590.0,105580.0,0.01781182]
[1749994264204,6.1977051,105590.0,105580.0,0.01781256]
[1749994264431,6.29394686,105590.0,105580.0,0.00014211]
[1749994264654,6.32226853,105590.0,105580.0,0.00014211]
[1749994265326,6.29394686,105590.0,105580.0,0.00014211]
[1749994265767,6.32426853,105590.0,105580.0,0.00014211]
[1749994266459,6.36208055,105590.0,105580.0,0.00014211]
[1749994266682,6.36408055,105590.0,105580.0,0.00014211]
[1749994269145,5.18336439,105560.0,105550.0,0.26406842]
[1749994269364,5.17389156,105560.0,105550.0,0.26406842]
[1749994269574,5.19283722,105560.0,105550.0,0.26406842]
[1749994270201,5.73030132,105560.0,105550.0,0.26406842]
[1749994270416,5.7208284,105560.0,105550.0,0.26406842]
[1749994270841,5.73030132,105560.0,105550.0,0.26406842]
[1749994271058,5.18336403,105560.0,105550.0,0.28174459]
[1749994271271,5.17389147,105560.0,105550.0,0.28174459]
[1749994271478,5.18336403,105560.0,105550.0,0.28174459]
[1749994271695,5.18336403,105560.0,105550.0,0.37798659]
[1749994271902,5.17389147,105560.0,105550.0,0.3779867]
[1749994272133,4.824419,105560.0,105550.0,0.37798664]
[1749994272363,4.83388968,105580.0,105570.0,0.26332061]
[1749994272576,5.39029559,105580.0,105570.0,0.35956237]
[1749994272792,5.73029559,105580.0,105570.0,0.35956237]
[1749994273007,5.7302955,105580.0,105570.0,0.37723025]
[1749994273225,5.7302955,105580.0,105570.0,0.35956237]
[1749994273441,5.39029559,105580.0,105570.0,0.37723025]
[1749994273696,5.7407669,105580.0,105570.0,0.37722933]
[1749994273908,5.7407669,105580.0,105570.0,0.35956237]
[1749994274551,5.7502383,105580.0,105570.0,0.37722962]
[1749994274764,5.7512383,105580.0,105570.0,0.37722962]
[1749994275210,5.75123911,105580.0,105570.0,0.3500907]
[1749994275887,5.92172711,105580.0,105570.0,0.34061895]
[1749994276549,5.9876145,105580.0,105570.0,0.018]
[1749994276770,5.36333904,105570.0,105560.0,0.23373858]
[1749994276996,5.90080314,105570.0,105560.0,0.0348]
[1749994277679,5.90080314,105570.0,105560.0,0.04427328]
[1749994278179,5.90080314,105570.0,105560.0,0.0348]
[1749994278388,5.90080314,105570.0,105560.0,0.0358]
[1749994279820,5.90080314,105570.0,105560.0,0.23473898]
[1749994280752,5.90080314,105570.0,105560.0,0.04527328]
[1749994280960,5.91027516,105570.0,105560.0,0.24421199]
[1749994281849,5.72082741,105570.0,105560.0,0.25368473]
[1749994282068,5.72082741,105570.0,105560.0,0.26315738]
[1749994282282,5.72082741,105570.0,105560.0,0.25368473]
[1749994282811,5.71135485,105570.0,105560.0,0.26315738]
[1749994282992,5.72082678,105570.0,105560.0,0.26315738]
[1749994283502,5.72082669,105570.0,105560.0,0.26315738]
[1749994284172,5.92921893,105570.0,105560.0,0.25368491]
[1749994284399,5.91974718,105570.0,105560.0,0.24421199]
[1749994284664,5.91027534,105570.0,105560.0,0.24421199]
[1749994285392,5.91027534,105570.0,105560.0,0.23473898]
[1749994285580,5.90080323,105570.0,105560.0,0.24421217]
[1749994286286,5.89133085,105570.0,105560.0,0.23473898]
[1749994286499,5.89133085,105570.0,105560.0,0.04527328]
[1749994287762,5.89133085,105570.0,105560.0,0.0358]
[1749994288204,6.54254417,105570.0,105560.0,0.001]
[1749994288442,6.56144417,105570.0,105560.0,0.001]
[1749994288694,6.56144417,105570.0,105560.0,0.00984102]
[1749994288695,6.81396593,105570.0,105560.0,0.00984102]
[1749994288928,6.84233832,105570.0,105560.0,0.001]
[1749994289180,6.84233832,105570.0,105550.0,8.976e-05]
[1749994289181,5.0598578,105560.0,105550.0,8.976e-05]
[1749994289432,6.38721522,105560.0,105550.0,0.00893175]
[1749994289688,6.38721522,105560.0,105550.0,0.00893172]
[1749994289939,6.38721522,105560.0,105550.0,0.00893155]
[1749994290206,6.36911522,105560.0,105550.0,0.00893155]
[1749994290403,6.36911522,105560.0,105550.0,0.00893163]
[1749994290616,6.37011522,105560.0,105550.0,8.976e-05]
[1749994291101,6.37111522,105560.0,105550.0,8.976e-05]
[1749994291334,6.37111522,105560.0,105550.0,0.00893123]
[1749994291575,6.38921522,105560.0,105550.0,0.00893166]
[1749994291788,6.38921522,105560.0,105550.0,0.00893178]
[1749994292001,6.38921522,105560.0,105550.0,8.976e-05]
[1749994292216,6.38921522,105560.0,105550.0,0.00893186]
[1749994292435,6.38921522,105560.0,105550.0,8.976e-05]
[1749994292661,6.293066,105560.0,105550.0,0.00893183]
[1749994292878,6.293066,105560.0,105550.0,0.0089318]
[1749994293540,6.293066,105560.0,105550.0,8.976e-05]
[1749994293766,6.293066,105560.0,105550.0,0.01777385]
[1749994294024,6.38921522,105560.0,105550.0,0.01777385]
[1749994294218,6.38921522,105560.0,105550.0,0.01777335]
[1749994294647,6.38921522,105560.0,105550.0,8.976e-05]
[1749994295092,6.38921522,105560.0,105550.0,0.01777319]
[1749994295335,6.38921522,105560.0,105550.0,8.976e-05]
[1749994295564,6.293066,105560.0,105550.0,8.976e-05]
[1749994295784,6.293066,105560.0,105550.0,0.01777474]
[1749994296064,6.293066,105560.0,105550.0,0.01777468]
[1749994296287,6.293066,105560.0,105550.0,8.976e-05]
[1749994296524,6.274966,105560.0,105550.0,0.01777428]
[1749994296729,6.37111522,105560.0,105550.0,8.976e-05]
[1749994296955,6.38891522,105560.0,105550.0,0.01777376]
[1749994297181,6.38891522,105560.0,105550.0,8.976e-05]
[1749994297638,6.37111522,105560.0,105550.0,0.01777322]
[1749994297884,6.37111522,105560.0,105550.0,0.01777344]
[1749994298110,6.37111522,105560.0,105550.0,8.976e-05]
[1749994298552,6.37111522,105560.0,105550.0,0.01777211]
[1749994298784,6.37111522,105560.0,105550.0,0.01777171]
[1749994299240,6.37111522,105560.0,105550.0,8.976e-05]
[1749994299665,6.37111522,105560.0,105550.0,0.01777175]
[1749994299877,6.37111522,105560.0,105550.0,0.01777188]
[1749994300303,6.37111522,105560.0,105550.0,0.01777184]
[1749994300508,6.37111522,105560.0,105550.0,8.976e-05]
[1749994300721,6.37111522,105560.0,105550.0,0.01777199]
[1749994301225,6.37111522,105560.0,105550.0,0.01777201]
[1749994301486,6.3760626,105560.0,105550.0,8.976e-05]
[1749994301741,6.3760626,105560.0,105550.0,0.01777277]
[1749994301987,6.3760626,105560.0,105550.0,0.01777293]
[1749994302214,5.20522518,105560.0,105550.0,0.01777292]
[1749994302450,5.56776928,105560.0,105550.0,0.03647292]
[1749994302678,5.57724229,105560.0,105550.0,0.05566925]
[1749994303136,5.56776928,105560.0,105550.0,0.0556696]
[1749994303362,5.56776928,105560.0,105550.0,0.03798976]
[1749994303800,6.10523338,105560.0,105550.0,0.03798976]
[1749994307028,5.03977801,105560.0,105550.0,0.2369475]
[1749994307237,5.5867153,105560.0,105550.0,0.2369475]
[1749994307439,5.57724211,105560.0,105550.0,0.03798976]
[1749994307878,5.57724211,105560.0,105550.0,0.05559825]
[1749994308295,5.57624211,105560.0,105550.0,0.24642132]
[1749994308710,5.57524211,105560.0,105550.0,0.26403067]
[1749994308923,5.57524211,105560.0,105550.0,0.24742132]
[1749994309145,5.57524211,105560.0,105550.0,0.26503067]
[1749994309590,5.57524211,105560.0,105550.0,0.24742132]
[1749994309806,5.57524211,105560.0,105550.0,0.25689514]
[1749994310043,5.57524211,105560.0,105550.0,0.28397809]
[1749994310260,5.57524211,105560.0,105550.0,0.28397793]
[1749994310471,5.57524211,105560.0,105550.0,0.28397794]
[1749994310472,5.5847153,105560.0,105550.0,0.28397794]
[1749994310707,5.3952496,105560.0,105550.0,0.28397774]
[1749994310930,5.3952496,105560.0,105550.0,0.29351824]
[1749994311371,5.40472288,105560.0,105550.0,0.28404463]
[1749994311794,5.40472288,105560.0,105550.0,0.29351818]
[1749994312462,5.40472288,105560.0,105550.0,0.27584233]
[1749994312678,5.3952496,105560.0,105550.0,0.29351818]
[1749994312901,5.68086452,105560.0,105550.0,0.42141717]
[1749994313124,5.67139169,105560.0,105550.0,0.42141717]
[1749994313361,5.57524247,105560.0,105550.0,0.42141839]
[1749994313581,5.57524247,105560.0,105550.0,0.42141873]
[1749994313801,5.57524247,105560.0,105550.0,0.43089246]
[1749994314033,5.58471575,105560.0,105550.0,0.41194475]
[1749994314241,5.57524265,105560.0,105550.0,0.41194492]
[1749994314463,6.19938278,105560.0,105550.0,0.03746727]
[1749994314709,6.19938278,105560.0,105550.0,0.19378822]
[1749994315129,6.19938278,105560.0,105550.0,0.19378874]
[1749994315341,6.19938278,105560.0,105550.0,0.05666874]
[1749994315551,6.19938278,105560.0,105550.0,0.03898976]
[1749994315552,6.10323356,105560.0,105550.0,0.03898976]
[1749994315983,6.10323356,105560.0,105550.0,0.05666827]
[1749994316195,6.10323356,105560.0,105550.0,0.01978976]
[1749994316426,6.10323356,105560.0,105550.0,0.03746829]
[1749994316663,6.10323356,105560.0,105550.0,0.01978976]
[1749994316896,6.15034002,105560.0,105550.0,0.03746911]
[1749994317123,6.15034002,105560.0,105550.0,0.03746912]
[1749994317562,6.15034002,105560.0,105550.0,0.01978976]
[1749994318034,6.15034002,105560.0,105550.0,0.03746843]
[1749994318257,6.10323356,105560.0,105550.0,0.01978976]
[1749994318502,5.02830536,105560.0,105550.0,0.01978976]
[1749994318767,6.10323356,105560.0,105550.0,0.01978976]
[1749994318995,6.10323356,105560.0,105550.0,0.03745305]
[1749994319209,6.19938278,105560.0,105550.0,0.03745343]
[1749994319426,6.19938278,105560.0,105550.0,0.03745366]
[1749994320070,6.19938278,105560.0,105550.0,0.01978976]
[1749994320279,6.19938278,105560.0,105550.0,0.03745368]
[1749994320501,6.19938278,105560.0,105550.0,0.03745365]
[1749994320738,6.19938278,105560.0,105550.0,0.01978976]
[1749994320960,6.19938278,105560.0,105550.0,0.03745364]
[1749994321412,6.19938278,105560.0,105550.0,0.01978976]
[1749994321662,5.94688656,105560.0,105550.0,0.03745362]
[1749994321892,5.97973918,105560.0,105550.0,0.01875444]
[1749994322106,5.97973918,105560.0,105550.0,0.00108976]
[1749994322325,6.13605918,105560.0,105550.0,0.00108976]
[1749994322555,6.2322084,105560.0,105550.0,0.00108976]
[1749994323194,6.2332084,105560.0,105550.0,8.976e-05]
[1749994323422,5.06213098,105560.0,105550.0,8.976e-05]
[1749994323632,6.13705918,105560.0,105550.0,8.976e-05]
[1749994324054,6.13805918,105560.0,105550.0,8.976e-05]
[1749994325990,6.23430094,105560.0,105550.0,8.976e-05]
[1749994331274,6.07798094,105560.0,105550.0,8.976e-05]
[1749994331504,5.94393918,105560.0,105550.0,0.01828976]
[1749994332395,5.40647508,105560.0,105550.0,0.22543123]
[1749994332607,5.42542056,105560.0,105550.0,0.25270296]
[1749994332816,5.41594809,105560.0,105550.0,0.25270127]
[1749994333028,5.41594809,105560.0,105550.0,0.23504759]
[1749994333258,5.40647508,105560.0,105550.0,0.25270208]
[1749994333474,5.41594809,105560.0,105550.0,0.25399532]
[1749994333689,5.41594809,105560.0,105550.0,0.28111192]
[1749994333690,5.58542733,105560.0,105550.0,0.28111192]
[1749994333899,5.58542733,105560.0,105550.0,0.26346896]
[1749994334146,5.58542733,105560.0,105550.0,0.29058436]
[1749994334557,5.58542733,105560.0,105550.0,0.27294251]
[1749994334768,5.58542733,105560.0,105550.0,0.29058422]
[1749994334979,5.59390052,105560.0,105550.0,0.42946251]
[1749994335201,5.57495423,105560.0,105550.0,0.44710421]
[1749994335410,5.58442733,105560.0,105550.0,0.44710421]
[1749994335634,5.58442733,105560.0,105550.0,0.44710422]
[1749994335845,5.58442733,105560.0,105550.0,0.44710425]
[1749994336054,5.58342733,105560.0,105550.0,0.44710424]
[1749994336473,5.58342733,105560.0,105550.0,0.44810424]
[1749994336681,5.59290052,105560.0,105550.0,0.44810424]
[1749994337130,5.59290052,105560.0,105550.0,0.43046251]
[1749994337549,5.59290052,105560.0,105550.0,0.44810424]
[1749994337994,5.58342805,105560.0,105550.0,0.42090896]
[1749994338626,6.38756141,105560.0,105550.0,0.03693322]
[1749994338831,6.29141219,105560.0,105550.0,0.03693426]
[1749994339061,6.29141219,105560.0,105550.0,0.00108976]
[1749994339274,6.29141219,105560.0,105550.0,0.01873484]
[1749994339907,6.38756141,105560.0,105550.0,0.00108976]
[1749994340126,6.31031219,105560.0,105550.0,0.00108976]
[1749994343745,6.29141219,105560.0,105550.0,0.01888976]
[1749994345945,5.01754483,105560.0,105550.0,0.25439487]
[1749994346158,5.56448203,105560.0,105550.0,0.25439487]
[1749994347200,5.5739545,105560.0,105550.0,0.25439487]
[1749994348021,5.55500866,105560.0,105550.0,0.25439487]
[1749994348232,5.56448131,105560.0,105550.0,0.25439487]
[1749994348441,0.34,105560.0,105550.0,0.35063663]
[1749994349544,0.8774641,105560.0,105550.0,0.35063663]
[1749994349964,0.34,105560.0,105550.0,0.35063663]
[1749994350405,0.34947247,105560.0,105550.0,0.35063663]
[1749994350613,0.88693657,105560.0,105550.0,0.35063663]
[1749994351034,0.8774641,105560.0,105550.0,0.35063663]
[1749994352733,0.88693666,105560.0,105550.0,0.35063663]
[1749994352948,0.34,105560.0,105550.0,0.35063663]
[1749994353577,0.01894342,105570.0,105560.0,0.25588446]
[1749994353790,0.18942981,105580.0,105570.0,0.26532536]
[1749994353791,5.22447863,105580.0,105570.0,0.26532536]
[1749994353999,5.56447827,105580.0,105570.0,0.26532536]
[1749994354209,5.56447845,105580.0,105570.0,0.26532536]
[1749994354642,5.57394985,105580.0,105570.0,0.26532536]
[1749994354850,5.57394922,105580.0,105570.0,0.26532536]
[1749994355079,5.58442062,105580.0,105570.0,0.26532536]
[1749994355604,5.77385043,105580.0,105570.0,0.26532536]
[1749994355842,5.77385043,105580.0,105570.0,0.25585361]
[1749994355843,5.78332192,105580.0,105570.0,0.25585361]
[1749994356976,5.59489211,105580.0,105570.0,0.25585361]
[1749994357392,5.58542134,105580.0,105570.0,0.25585361]
[1749994357806,5.77485115,105580.0,105570.0,0.41213361]
[1749994358842,5.56647791,105580.0,105570.0,0.41213361]
[1749994359050,5.57594913,105580.0,105570.0,0.42160536]
[1749994359269,5.58542044,105580.0,105570.0,0.42160536]
[1749994360785,5.55700687,105580.0,105570.0,0.42160536]
[1749994361000,5.56647791,105580.0,105570.0,0.42160536]
[1749994361411,5.57594913,105580.0,105570.0,0.42160536]
[1749994362488,5.58542044,105580.0,105570.0,0.42160536]
[1749994365212,5.59489184,105580.0,105570.0,0.42160536]
[1749994365732,0.91734844,105580.0,105570.0,0.42160536]
[1749994365950,0.002,105580.0,105570.0,0.51784712]
[1749994366415,0.002,105580.0,105570.0,0.56059588]
[1749994366871,0.001,105580.0,105570.0,0.56059588]
[1749994367096,0.54693298,105600.0,105590.0,0.25432256]
[1749994367360,0.55640204,105600.0,105590.0,0.41060256]
[1749994367569,0.54693298,105600.0,105590.0,0.41060256]
[1749994367784,0.55640204,105600.0,105590.0,0.41060256]
[1749994367996,0.88693298,105600.0,105590.0,0.41060256]
[1749994368208,0.89640204,105600.0,105590.0,0.41060256]
[1749994368423,0.88693298,105600.0,105590.0,0.41060256]
[1749994368643,0.89640204,105600.0,105590.0,0.41060256]
[1749994369058,0.88693298,105600.0,105590.0,0.41060256]
[1749994369742,0.8774641,105600.0,105590.0,0.41060256]
[1749994369958,0.88693307,105600.0,105590.0,0.41060256]
[1749994370169,0.8774641,105600.0,105590.0,0.41060256]
[1749994370602,0.88693307,105600.0,105590.0,0.41060256]
[1749994371075,0.8774641,105600.0,105590.0,0.41060256]
[1749994371306,0.88693298,105600.0,105590.0,0.41060256]
[1749994371517,0.8774641,105600.0,105590.0,0.41060256]
[1749994372420,0.34,105600.0,105590.0,0.41060256]
[1749994372640,0.8774641,105600.0,105590.0,0.41060256]
[1749994373077,0.8774641,105600.0,105590.0,0.54780432]
[1749994373295,0.34,105600.0,105590.0,0.54780432]
[1749994374576,0.34,105600.0,105590.0,0.54980432]
[1749994375224,0.34,105600.0,105590.0,0.35256432]
[1749994375437,0.90587155,105600.0,105590.0,0.33476432]
[1749994375650,0.89640213,105600.0,105590.0,0.39676256]
[1749994376330,0.88693298,105600.0,105590.0,0.39676256]
[1749994376551,0.89640204,105600.0,105590.0,0.39676256]
[1749994377040,0.34,105600.0,105590.0,0.39676256]
[1749994377249,0.89526086,105610.0,105600.0,0.23540192]
[1749994377454,0.90472885,105610.0,105600.0,0.35064368]
[1749994377676,0.89526086,105610.0,105600.0,0.35064368]
[1749994377882,0.90472894,105610.0,105600.0,0.35064368]
[1749994378086,0.90472894,105610.0,105600.0,0.33164368]
[1749994378497,0.91419711,105610.0,105600.0,0.33164368]
[1749994378924,0.92366537,105610.0,105600.0,0.33164368]
[1749994379758,0.90472894,105610.0,105600.0,0.33164368]
[1749994379958,0.89526086,105610.0,105600.0,0.33164368]
[1749994380167,0.90472894,105610.0,105600.0,0.35054368]
[1749994380831,0.90472894,105610.0,105600.0,0.33164368]
[1749994381713,0.90472885,105610.0,105600.0,0.33164368]
[1749994382594,0.91419702,105610.0,105600.0,0.33164368]
[1749994382807,0.90472885,105610.0,105600.0,0.33164368]
[1749994383024,0.91419693,105610.0,105600.0,0.33164368]
[1749994383244,0.92366519,105610.0,105600.0,0.33164368]
[1749994383724,0.91419693,105610.0,105600.0,0.33164368]
[1749994384178,0.9236651,105610.0,105600.0,0.33164368]
[1749994385281,0.93313354,105610.0,105600.0,0.33164368]
[1749994386377,0.93313345,105610.0,105600.0,0.33164368]
[1749994386595,1.12251008,105610.0,105600.0,0.45130529]
[1749994386800,1.15067951,105610.0,105600.0,0.47024386]
[1749994387011,1.13174299,105610.0,105600.0,0.19886353]
[1749994387224,0.0284079,105600.0,105590.0,0.26681206]
[1749994387482,0.56587137,105600.0,105590.0,0.52872432]